bitfinex/quotes_BTCUSD_20251016
["timestamp","ask_amount","ask_price","bid_price","bid_amount"]
[1760618473453,0.12,111840.0,111820.0,0.107576]
[1760618473910,0.12,111840.0,111820.0,0.10772584]
[1760618474349,0.15633211,111840.0,111820.0,0.10772584]
[1760618477070,4.841111,111830.0,111820.0,0.08983996]
[1760618477300,0.36042824,111830.0,111820.0,0.00014984]
[1760618477550,0.49042824,111830.0,111820.0,0.00014984]
[1760618477786,5.33153924,111830.0,111820.0,0.00014984]
[1760618478021,5.33309698,111830.0,111820.0,0.00014984]
[1760618478255,5.33153924,111830.0,111820.0,0.00014984]
[1760618480097,5.33253924,111830.0,111820.0,0.00014984]
[1760618480742,5.33409698,111830.0,111820.0,0.00014984]
[1760618483573,5.67409698,111830.0,111790.0,0.0717521]
[1760618483804,4.841111,111810.0,111790.0,0.16194181]
[1760618484040,0.48042824,111810.0,111790.0,0.16194181]
[1760618484497,0.48042824,111810.0,111790.0,0.09018971]
[1760618484729,0.12,111810.0,111790.0,0.09018971]
[1760618485172,0.48042824,111810.0,111790.0,0.09018971]
[1760618485602,4.841111,111800.0,111790.0,0.09018971]
[1760618485813,4.861111,111800.0,111790.0,0.09018971]
[1760618486026,0.02,111800.0,111790.0,0.09018971]
[1760618486627,0.02,111800.0,111790.0,0.00049959]
[1760618488703,5.22153924,111800.0,111790.0,0.00049959]
[1760618490302,5.22153924,111800.0,111770.0,0.0717521]
[1760618490303,5.20153924,111790.0,111770.0,0.0717521]
[1760618490487,0.36042824,111790.0,111770.0,0.07190201]
[1760618490732,0.40042824,111790.0,111770.0,0.08979589]
[1760618490947,0.40042824,111790.0,111770.0,0.01804379]
[1760618491611,0.04,111790.0,111770.0,0.00014991]
[1760618492946,0.40042824,111790.0,111770.0,0.00014991]
[1760618493370,0.04,111790.0,111770.0,0.00014991]
[1760618494510,0.04,111790.0,111770.0,0.08984003]
[1760618494511,0.41042824,111790.0,111770.0,0.08984003]
[1760618494726,4.841111,111780.0,111770.0,0.08984003]
[1760618495209,0.01,111780.0,111770.0,0.08984003]
[1760618497258,0.20676056,111790.0,111770.0,0.08984003]
[1760618497505,4.841111,111780.0,111770.0,0.08984003]
[1760618497710,4.851111,111780.0,111770.0,0.08984003]
[1760618497922,0.01,111780.0,111770.0,0.08984003]
[1760618499459,0.03633232,111790.0,111770.0,0.42847877]
[1760618499660,0.01,111790.0,111780.0,0.1075824]
[1760618499861,0.04641239,111790.0,111780.0,0.08969012]
[1760618500075,0.34863874,111790.0,111770.0,0.00014991]
[1760618500274,0.34863874,111790.0,111770.0,0.08984003]
[1760618501781,0.38424092,111790.0,111770.0,0.08984003]
[1760618502204,0.06488411,111790.0,111770.0,0.08984003]
[1760618505437,0.40352285,111790.0,111770.0,0.08984003]
[1760618506257,4.841111,111780.0,111770.0,0.08984003]
[1760618506577,0.38792067,111780.0,111770.0,0.00014991]
[1760618507007,0.04928193,111780.0,111770.0,0.00014991]
[1760618509671,0.03,111780.0,111770.0,0.00014991]
[1760618509895,0.03,111780.0,111770.0,0.1790888]
[1760618509896,0.07826528,111780.0,111770.0,0.1790888]
[1760618510734,0.06217626,111780.0,111770.0,0.1790888]
[1760618511748,0.24109914,111780.0,111770.0,0.1790888]
[1760618512862,0.06217626,111780.0,111770.0,0.1790888]
[1760618516097,0.24109914,111780.0,111770.0,0.1790888]
[1760618516974,0.57973788,111780.0,111770.0,0.00014991]
[1760618517205,0.24109914,111780.0,111770.0,0.1790888]
[1760618517434,0.06217626,111780.0,111770.0,0.1790888]
[1760618519220,0.24109914,111780.0,111770.0,0.1790888]
[1760618519708,0.25718816,111780.0,111770.0,0.1790888]
[1760618520565,0.07826528,111780.0,111770.0,0.1790888]
[1760618520794,0.25718816,111780.0,111770.0,0.1790888]
[1760618521014,0.07826528,111780.0,111770.0,0.1790888]
[1760618521235,0.25718816,111780.0,111770.0,0.1790888]
[1760618522381,0.5958269,111780.0,111770.0,0.00014991]
[1760618522603,5.38867262,111780.0,111770.0,0.00014991]
[1760618524006,5.72867262,111780.0,111770.0,0.00014991]
[1760618525351,5.72967262,111780.0,111770.0,0.00014991]
[1760618527270,5.77784608,111780.0,111770.0,0.00014991]
[1760618527523,5.72967262,111780.0,111770.0,0.00014991]
[1760618528315,5.77784278,111780.0,111770.0,0.00014991]
[1760618528540,5.77940122,111780.0,111770.0,0.00014991]
[1760618528981,5.77784278,111780.0,111770.0,0.00014991]
[1760618531305,5.80996144,111780.0,111770.0,0.00014991]
[1760618531721,5.4713227,111780.0,111770.0,0.00014991]
[1760618531933,5.80996144,111780.0,111770.0,0.00014991]
[1760618532355,5.76334973,111780.0,111770.0,0.00014991]
[1760618532781,5.76179128,111780.0,111770.0,0.00014991]
[1760618533680,5.42315254,111780.0,111770.0,0.00014991]
[1760618533899,5.76179128,111780.0,111770.0,0.00014991]
[1760618534308,5.80996144,111780.0,111770.0,0.00014991]
[1760618535699,5.81151988,111780.0,111770.0,0.00014991]
[1760618536534,5.79615209,111780.0,111770.0,0.00014991]
[1760618538376,5.79445209,111780.0,111770.0,0.00014991]
[1760618538826,5.79445209,111780.0,111770.0,0.1790888]
[1760618538827,4.93533203,111780.0,111770.0,0.1790888]
[1760618539039,0.28857723,111780.0,111770.0,0.1790888]
[1760618539274,0.25639304,111780.0,111770.0,0.1790888]
[1760618539484,0.27316721,111780.0,111770.0,0.00014991]
[1760618539696,0.61180595,111780.0,111770.0,0.00014991]
[1760618540115,0.27316721,111780.0,111770.0,0.00014991]
[1760618540328,0.62723747,111780.0,111770.0,0.00014991]
[1760618541079,0.62623747,111780.0,111770.0,0.00014991]
[1760618541910,0.36279331,111780.0,111770.0,0.00014991]
[1760618542116,0.65171619,111780.0,111770.0,0.00014991]
[1760618542547,0.13415457,111780.0,111770.0,0.1790888]
[1760618543406,0.31463576,111780.0,111770.0,0.1790888]
[1760618545300,0.31463576,111780.0,111770.0,0.00014991]
[1760618545504,0.6532745,111780.0,111770.0,0.1790888]
[1760618545709,0.31463576,111780.0,111770.0,0.1790888]
[1760618545910,0.6532745,111780.0,111770.0,0.1790888]
[1760618546338,0.31463576,111780.0,111770.0,0.1790888]
[1760618547500,0.13571288,111780.0,111770.0,0.1790888]
[1760618549195,0.31463576,111780.0,111770.0,0.1790888]
[1760618549846,0.29048119,111780.0,111770.0,0.1790888]
[1760618550347,0.11155831,111780.0,111770.0,0.1790888]
[1760618551245,0.11155831,111780.0,111770.0,0.2866728]
[1760618551431,0.11155831,111780.0,111770.0,0.26877892]
[1760618551849,0.12933593,111780.0,111770.0,0.26877892]
[1760618552499,0.0434905,111790.0,111780.0,0.17892288]
[1760618552718,0.1134905,111790.0,111780.0,0.28650528]
[1760618552942,0.1134905,111790.0,111780.0,0.268613]
[1760618553172,0.1493488,111790.0,111780.0,0.268613]
[1760618553843,0.1134905,111790.0,111780.0,0.268613]
[1760618554528,0.07,111790.0,111780.0,0.268613]
[1760618555594,0.10668612,111790.0,111780.0,0.268613]
[1760618556643,0.28559299,111790.0,111780.0,0.268613]
[1760618556857,0.10668612,111790.0,111780.0,0.268613]
[1760618558878,0.28559299,111790.0,111780.0,0.268613]
[1760618559542,0.48759074,111790.0,111780.0,0.268613]
[1760618559766,0.50692667,111790.0,111780.0,0.268613]
[1760618560221,0.48759074,111790.0,111780.0,0.268613]
[1760618560975,0.10668612,111790.0,111780.0,0.268613]
[1760618562559,0.66649761,111790.0,111780.0,0.268613]
[1760618563813,0.48759074,111790.0,111780.0,0.268613]
[1760618564446,0.66649761,111790.0,111780.0,0.268613]
[1760618565070,0.48759074,111790.0,111780.0,0.268613]
[1760618567778,0.66649761,111790.0,111780.0,0.268613]
[1760618568000,0.48759074,111790.0,111780.0,0.17892288]
[1760618568222,0.66649761,111790.0,111780.0,0.17892288]
[1760618568657,0.68580348,111790.0,111780.0,0.17892288]
[1760618568953,0.50689661,111790.0,111780.0,0.17892288]
[1760618569177,0.68580348,111790.0,111780.0,0.17892288]
[1760618569389,0.66649761,111790.0,111780.0,0.17892288]
[1760618569615,0.48759074,111790.0,111780.0,0.17892288]
[1760618578395,0.5069196,111790.0,111780.0,0.17892288]
[1760618581897,5.52693747,111790.0,111770.0,0.1790888]
[1760618582117,0.38090462,111780.0,111770.0,0.1790888]
[1760618582332,0.51090462,111780.0,111770.0,0.1790888]
[1760618582542,0.53023348,111780.0,111770.0,0.1790888]
[1760618584039,5.93117198,111780.0,111770.0,0.00014991]
[1760618584485,5.95807779,111780.0,111770.0,0.00014991]
[1760618585176,5.95963621,111780.0,111770.0,0.00014991]
[1760618585631,5.96063621,111780.0,111770.0,0.00014991]
[1760618586951,5.19882697,111780.0,111770.0,0.00014991]
[1760618587172,5.96063621,111780.0,111770.0,0.00014991]
[1760618588022,6.30063621,111780.0,111770.0,0.00014991]
[1760618588219,6.33233807,111780.0,111770.0,0.00014991]
[1760618588492,0.55985952,111760.0,111730.0,0.34953727]
[1760618588717,5.40098653,111750.0,111740.0,0.26867657]
[1760618588912,0.61987553,111750.0,111740.0,0.26867657]
[1760618589756,0.44090462,111750.0,111740.0,0.26867657]
[1760618591806,0.06,111750.0,111740.0,0.26867657]
[1760618592081,0.06,111750.0,111740.0,0.64958119]
[1760618592284,0.00155862,111770.0,111760.0,0.1789549]
[1760618592563,0.50246324,111770.0,111760.0,0.1789549]
[1760618593236,0.68140213,111770.0,111760.0,0.1789549]
[1760618595124,0.50246324,111770.0,111760.0,0.1789549]
[1760618596057,0.68140213,111770.0,111760.0,0.1789549]
[1760618597336,0.50246324,111770.0,111760.0,0.1789549]
[1760618603140,0.68140213,111770.0,111760.0,0.1789549]
[1760618604407,0.50246324,111770.0,111760.0,0.1789549]
[1760618604835,0.68140213,111770.0,111760.0,0.1789549]
[1760618605497,0.70072106,111770.0,111760.0,0.1789549]
[1760618606130,5.54183206,111770.0,111760.0,0.1789549]
[1760618607004,5.36289317,111770.0,111760.0,0.1789549]
[1760618607254,0.52178217,111770.0,111760.0,0.1789549]
[1760618608364,0.70072106,111770.0,111760.0,0.1789549]
[1760618610587,0.52178217,111770.0,111760.0,0.1789549]
[1760618612482,0.70072106,111770.0,111760.0,0.1789549]
[1760618612644,0.52178217,111770.0,111760.0,0.1789549]
[1760618619450,0.14087755,111770.0,111760.0,0.1789549]
[1760618619660,0.12155862,111770.0,111760.0,0.1789549]
[1760618622181,0.12155862,111770.0,111760.0,0.26864502]
[1760618622400,0.06923045,111790.0,111780.0,0.17892288]
[1760618622401,0.06117468,111790.0,111780.0,0.17892288]
[1760618622634,0.14702476,111790.0,111780.0,0.17892288]
[1760618622849,0.1485831,111790.0,111780.0,0.17892288]
[1760618623076,0.14702476,111790.0,111780.0,0.17892288]
[1760618623716,0.14717445,111790.0,111780.0,0.17892288]
[1760618623930,5.06622228,111800.0,111790.0,0.17890687]
[1760618624136,5.47493784,111800.0,111790.0,0.17890687]
[1760618625221,5.33237826,111800.0,111790.0,0.17890687]
[1760618625687,5.48536812,111800.0,111790.0,0.17890687]
[1760618626752,5.48692625,111800.0,111790.0,0.17890687]
[1760618628229,4.841111,111790.0,111780.0,0.17892288]
[1760618628452,0.15931893,111790.0,111780.0,0.268613]
[1760618628644,0.14,111790.0,111780.0,0.268613]
[1760618628878,0.14,111790.0,111780.0,0.17892288]
[1760618629304,0.47871556,111790.0,111780.0,0.17892288]
[1760618629528,0.49803449,111790.0,111780.0,0.17892288]
[1760618629958,0.15931893,111790.0,111780.0,0.17892288]
[1760618630162,0.02,111790.0,111780.0,0.17892288]
[1760618632189,0.19890687,111790.0,111780.0,0.17692288]
[1760618632424,0.17892288,111780.0,111770.0,0.17893889]
[1760618632634,0.57777248,111780.0,111760.0,0.18790264]
[1760618632838,4.841111,111770.0,111760.0,0.27759276]
[1760618633056,0.05,111770.0,111760.0,0.27759276]
[1760618633270,0.56765445,111770.0,111760.0,0.26864502]
[1760618633730,0.56765445,111770.0,111760.0,0.1789549]
[1760618634596,0.56765445,111770.0,111750.0,0.18790494]
[1760618634809,0.56765445,111770.0,111750.0,0.27759506]
[1760618636004,4.841111,111750.0,111740.0,0.17898693]
[1760618636215,0.23897091,111750.0,111740.0,0.26867705]
[1760618636436,0.57768647,111750.0,111730.0,0.27778517]
[1760618636650,0.57768647,111750.0,111730.0,0.36747529]
[1760618637096,0.57768647,111750.0,111740.0,0.17898693]
[1760618637336,0.57768647,111750.0,111730.0,0.36747529]
[1760618637791,0.57768647,111750.0,111740.0,0.17898693]
[1760618640639,0.06,111750.0,111740.0,0.17898693]
[1760618641049,0.02427764,111780.0,111770.0,0.17893889]
[1760618641306,5.5157884,111780.0,111770.0,0.17893889]
[1760618641971,5.02004989,111770.0,111750.0,0.18789149]
[1760618642211,0.1789549,111760.0,111750.0,0.27758161]
[1760618642451,0.51767046,111760.0,111740.0,0.26942693]
[1760618642658,4.841111,111750.0,111740.0,0.26867686]
[1760618642874,5.04008191,111750.0,111740.0,0.17898674]
[1760618643079,0.02,111750.0,111740.0,0.17898674]
[1760618643298,0.19897091,111750.0,111740.0,0.17898674]
[1760618643538,0.53768647,111750.0,111740.0,0.17898674]
[1760618643967,0.19897091,111750.0,111740.0,0.17898674]
[1760618644792,0.02,111750.0,111740.0,0.17898674]
[1760618648270,0.19897091,111750.0,111740.0,0.17898674]
[1760618651974,0.02,111750.0,111740.0,0.17898674]
[1760618652192,0.53768647,111750.0,111730.0,0.27778517]
[1760618652423,0.17898693,111740.0,111730.0,0.27778517]
[1760618652633,0.62770249,111740.0,111730.0,0.27778517]
[1760618653653,0.62783644,111740.0,111730.0,0.27778517]
[1760618654053,0.44884951,111740.0,111730.0,0.27778517]
[1760618654571,0.62783644,111740.0,111730.0,0.27778517]
[1760618654984,0.28912088,111740.0,111730.0,0.27778517]
[1760618655541,5.46894744,111740.0,111730.0,0.0004]
[1760618655959,5.5329868,111740.0,111730.0,0.0004]
[1760618656244,5.50451163,111740.0,111730.0,0.0004]
[1760618657861,5.59420175,111740.0,111730.0,0.0004]
[1760618658499,5.61349994,111740.0,111730.0,0.0004]
[1760618658711,5.61505894,111740.0,111730.0,0.0004]
[1760618659433,5.95505894,111740.0,111730.0,0.0004]
[1760618659641,5.9867608,111740.0,111730.0,0.0004]
[1760618659853,5.9852018,111740.0,111730.0,0.0004]
[1760618660073,5.98676091,111740.0,111730.0,0.0004]
[1760618660273,5.9852018,111740.0,111730.0,0.0004]
[1760618662306,5.95349994,111740.0,111730.0,0.0004]
[1760618662766,5.95505903,111740.0,111730.0,0.0004]
[1760618662975,5.98197691,111740.0,111730.0,0.0004]
[1760618665493,6.00612051,111740.0,111730.0,0.0004]
[1760618666381,5.57771483,111740.0,111730.0,0.0004]
[1760618666596,5.91643039,111740.0,111730.0,0.0004]
[1760618668036,5.91643039,111740.0,111730.0,0.17940295]
[1760618668283,5.57771483,111740.0,111730.0,0.21524508]
[1760618668998,5.57771483,111740.0,111730.0,0.03624213]
[1760618669637,5.91643039,111740.0,111730.0,0.03624213]
[1760618670297,5.74801184,111740.0,111730.0,0.0004]
[1760618670730,5.40929628,111740.0,111730.0,0.0004]
[1760618670943,5.74801184,111740.0,111730.0,0.0004]
[1760618671929,5.74801184,111740.0,111730.0,0.17940295]
[1760618672152,5.23030935,111740.0,111730.0,0.17940295]
[1760618672395,5.3823784,111740.0,111730.0,0.17940295]
[1760618672620,5.72109396,111740.0,111730.0,0.03624213]
[1760618672839,5.72109396,111740.0,111730.0,0.21524508]
[1760618673501,5.74523756,111740.0,111730.0,0.21524508]
[1760618678782,5.40523756,111740.0,111730.0,0.21524508]
[1760618679449,5.44781521,111740.0,111730.0,0.21524508]
[1760618679656,5.44625612,111740.0,111730.0,0.21524508]
[1760618680378,5.45430398,111740.0,111730.0,0.21524508]
[1760618680830,5.51936393,111740.0,111730.0,0.03624213]
[1760618681256,5.48717247,111740.0,111730.0,0.03624213]
[1760618682455,5.48717247,111740.0,111730.0,0.21524508]
[1760618683516,5.10587926,111740.0,111730.0,0.21524508]
[1760618683725,5.48717247,111740.0,111730.0,0.21524508]
[1760618684389,5.34197242,111740.0,111730.0,0.21524508]
[1760618684603,5.27691247,111740.0,111730.0,0.21524508]
[1760618684836,0.15864926,111740.0,111730.0,0.21524508]
[1760618685478,0.53994247,111740.0,111730.0,0.21524508]
[1760618687446,0.56412646,111740.0,111730.0,0.21524508]
[1760618687889,0.74311339,111740.0,111730.0,0.21524508]
[1760618689640,0.71083445,111740.0,111730.0,0.21524508]
[1760618690076,0.74306239,111740.0,111730.0,0.21524508]
[1760618690480,0.53184752,111740.0,111730.0,0.21524508]
[1760618691784,0.71083445,111740.0,111730.0,0.21524508]
[1760618692013,0.53184752,111740.0,111730.0,0.21524508]
[1760618692993,0.12637032,111740.0,111730.0,0.68622841]
[1760618693197,0.10707213,111740.0,111730.0,0.3049352]
[1760618693619,0.10551319,111740.0,111730.0,0.3049352]
[1760618696424,0.4868064,111740.0,111730.0,0.3049352]
[1760618696642,0.50610459,111740.0,111730.0,0.3049352]
[1760618701238,0.68509152,111740.0,111730.0,0.03624213]
[1760618701453,5.44624551,111740.0,111730.0,0.21524508]
[1760618701672,5.44780434,111740.0,111730.0,0.21524508]
[1760618702152,5.26881741,111740.0,111730.0,0.21524508]
[1760618702573,0.53184741,111740.0,111730.0,0.21524508]
[1760618702782,0.50766342,111740.0,111730.0,0.21524508]
[1760618703461,0.12637021,111740.0,111730.0,0.21524508]
[1760618703676,0.10707202,111740.0,111730.0,0.21524508]
[1760618704623,0.48836523,111740.0,111730.0,0.21524508]
[1760618704838,0.50766342,111740.0,111730.0,0.21524508]
[1760618705041,0.68665035,111740.0,111730.0,0.21524508]
[1760618705461,0.50766342,111740.0,111730.0,0.21524508]
[1760618707267,0.68665035,111740.0,111730.0,0.21524508]
[1760618707530,0.71083434,111740.0,111730.0,0.21524508]
[1760618707959,5.44780434,111740.0,111730.0,0.03624213]
[1760618708169,5.44780434,111740.0,111730.0,0.21524508]
[1760618708824,5.44624551,111740.0,111730.0,0.21524508]
[1760618709045,5.26725858,111740.0,111730.0,0.21524508]
[1760618709266,5.44624551,111740.0,111730.0,0.21524508]
[1760618710122,5.26725858,111740.0,111730.0,0.21524508]
[1760618710345,5.44624551,111740.0,111730.0,0.21524508]
[1760618712895,5.44624551,111740.0,111730.0,0.0004]
[1760618713323,5.82003238,111740.0,111730.0,0.0004]
[1760618717332,5.5897816,111740.0,111730.0,0.0004]
[1760618717526,1.01183907,111740.0,111730.0,0.0004]
[1760618717804,5.66755407,111740.0,111730.0,0.0004]
[1760618718882,5.70325439,111740.0,111730.0,0.0004]
[1760618721254,5.70325439,111740.0,111730.0,0.17940295]
[1760618721470,5.70325439,111740.0,111730.0,0.21524492]
[1760618721681,5.70325439,111740.0,111730.0,0.03624197]
[1760618721908,4.98196118,111740.0,111730.0,0.21524492]
[1760618722139,0.14725925,111740.0,111730.0,0.21524492]
[1760618722365,0.14725925,111740.0,111730.0,0.59653813]
[1760618722630,0.11155893,111740.0,111730.0,0.68622825]
[1760618722829,0.11,111740.0,111730.0,0.68622825]
[1760618723470,0.11,111740.0,111730.0,0.30493504]
[1760618723683,0.14697029,111740.0,111730.0,0.68622825]
[1760618724329,0.11,111740.0,111730.0,0.68622825]
[1760618724788,0.59246004,111770.0,111760.0,0.1789549]
[1760618724997,5.38495955,111770.0,111760.0,0.21489717]
[1760618725248,5.3542902,111770.0,111760.0,0.21489717]
[1760618725457,5.3542878,111770.0,111760.0,0.21489717]
[1760618725871,5.38986333,111770.0,111760.0,0.03594227]
[1760618726104,5.39086333,111770.0,111760.0,0.03594227]
[1760618726555,5.38986333,111770.0,111760.0,0.03594227]
[1760618726763,5.39086333,111770.0,111760.0,0.03594227]
[1760618727390,5.47137847,111770.0,111760.0,0.03594227]
[1760618728664,5.09008526,111770.0,111760.0,0.21489717]
[1760618728873,5.47137847,111770.0,111760.0,0.21489717]
[1760618729338,5.42309127,111770.0,111760.0,0.21489717]
[1760618729600,5.44241386,111770.0,111760.0,0.21489717]
[1760618730304,5.44241386,111770.0,111760.0,0.03594227]
[1760618730728,5.06112065,111770.0,111760.0,0.03594227]
[1760618730935,5.44241386,111770.0,111760.0,0.03594227]
[1760618731372,5.49070106,111770.0,111760.0,0.03594227]
[1760618731805,5.10940785,111770.0,111760.0,0.03594227]
[1760618732015,5.49070106,111770.0,111760.0,0.00014969]
[1760618732238,6.30115831,111770.0,111760.0,0.00014969]
[1760618732703,6.31725404,111770.0,111760.0,0.00014969]
[1760618732894,6.31569545,111770.0,111760.0,0.00014969]
[1760618733647,6.25130297,111770.0,111760.0,0.00014969]
[1760618734504,6.29960655,111770.0,111760.0,0.00014969]
[1760618734719,5.88661148,111770.0,111760.0,0.00014969]
[1760618735378,5.88817028,111770.0,111760.0,0.00014969]
[1760618735595,5.87206757,111770.0,111760.0,0.00014969]
[1760618735814,5.85529501,111770.0,111760.0,0.00014969]
[1760618736256,5.87206531,111770.0,111760.0,0.00014969]
[1760618736478,5.87206411,111770.0,111760.0,0.00014969]
[1760618736667,5.85529501,111770.0,111760.0,0.00014969]
[1760618736925,5.87206408,111770.0,111760.0,0.00014969]
[1760618737145,5.85529501,111770.0,111760.0,0.00014969]
[1760618739032,5.87206188,111770.0,111760.0,0.00014969]
[1760618739269,5.85529501,111770.0,111760.0,0.00014969]
[1760618740575,5.87205964,111770.0,111760.0,0.00014969]
[1760618741021,6.25335285,111770.0,111760.0,0.00014969]
[1760618741235,5.88816235,111770.0,111760.0,0.00014969]
[1760618741461,5.84577223,111770.0,111760.0,0.00014969]
[1760618741676,5.8779623,111770.0,111760.0,0.00014969]
[1760618742615,5.84577223,111770.0,111760.0,0.00014969]
[1760618742835,5.87747409,111770.0,111760.0,0.00014969]
[1760618743517,6.21637718,111770.0,111760.0,0.00014969]
[1760618743744,6.21637956,111770.0,111760.0,0.00014969]
[1760618746288,6.25256184,111770.0,111760.0,0.00014969]
[1760618746507,6.20425826,111770.0,111760.0,0.00014969]
[1760618746724,6.23117334,111770.0,111760.0,0.00014969]
[1760618746975,6.24520717,111770.0,111760.0,0.00014969]
[1760618749200,6.3095901,111770.0,111760.0,0.00014969]
[1760618750549,5.513589,111750.0,111740.0,0.0717521]
[1760618750761,5.8177004,111750.0,111740.0,0.0717521]
[1760618750964,5.67470193,111740.0,111730.0,0.0004]
[1760618751177,5.78483896,111740.0,111730.0,0.00054996]
[1760618751807,5.75261773,111740.0,111730.0,0.00054996]
[1760618752676,5.41261773,111740.0,111730.0,0.00054996]
[1760618752905,5.32292761,111740.0,111730.0,0.17955291]
[1760618753116,5.32292761,111740.0,111730.0,0.22258515]
[1760618754102,5.14394068,111740.0,111730.0,0.22258515]
[1760618754319,0.32986846,111740.0,111730.0,0.22258515]
[1760618754533,0.64944896,111740.0,111730.0,0.0435822]
[1760618754742,0.66877155,111740.0,111730.0,0.22258515]
[1760618756632,0.66829453,111740.0,111730.0,0.22258515]
[1760618758323,0.32939144,111740.0,111730.0,0.22258515]
[1760618758524,0.31006885,111740.0,111730.0,0.22258515]
[1760618760499,0.64897194,111740.0,111730.0,0.22258515]
[1760618760720,0.66829453,111740.0,111730.0,0.22258515]
[1760618763325,0.66829453,111740.0,111730.0,0.0435822]
[1760618763560,5.32400953,111740.0,111730.0,0.17955291]
[1760618765001,5.32400953,111740.0,111730.0,0.00054996]
[1760618766196,5.32400953,111740.0,111730.0,0.17955291]
[1760618766635,4.98510644,111740.0,111730.0,0.17955291]
[1760618766841,0.32939144,111740.0,111730.0,0.17955291]
[1760618767056,0.31006885,111740.0,111730.0,0.17955291]
[1760618767285,0.31006885,111740.0,111730.0,0.21541002]
[1760618768271,0.13108192,111740.0,111730.0,0.21541002]
[1760618769189,0.12952298,111740.0,111730.0,0.21541002]
[1760618775974,0.30850991,111740.0,111730.0,0.21541002]
[1760618777308,0.12952298,111740.0,111730.0,0.21541002]
[1760618779015,0.12952298,111740.0,111730.0,0.30510014]
[1760618781260,0.12952298,111740.0,111730.0,0.39538014]
[1760618781940,0.12952298,111740.0,111730.0,0.21541002]
[1760618782439,0.647413,111740.0,111730.0,0.03640707]
[1760618782658,5.34661521,111740.0,111730.0,0.00054996]
[1760618783328,0.66673559,111740.0,111730.0,0.00054996]
[1760618784305,5.32245059,111740.0,111730.0,0.00054996]
[1760618784741,5.32245059,111740.0,111730.0,0.17955291]
[1760618784957,5.32245059,111740.0,111730.0,0.00054996]
[1760618785385,5.3240095,111740.0,111730.0,0.17955291]
[1760618785598,5.17829299,111740.0,111730.0,0.21692486]
[1760618786915,4.8393899,111740.0,111730.0,0.21692486]
[1760618787123,5.17829299,111740.0,111730.0,0.21692486]
[1760618788201,0.1208815,111740.0,111730.0,0.21692486]
[1760618788421,0.10155891,111740.0,111730.0,0.21692486]
[1760618789524,0.1,111740.0,111730.0,0.21692486]
[1760618790265,0.61789002,111740.0,111730.0,0.03792191]
[1760618790488,0.61789002,111740.0,111730.0,0.17955291]
[1760618790913,0.63722087,111740.0,111730.0,0.17955291]
[1760618791392,0.11933085,111740.0,111730.0,0.17955291]
[1760618791637,0.27898693,111740.0,111730.0,0.17955291]
[1760618793859,0.1,111740.0,111730.0,0.17955291]
[1760618794133,0.1,111740.0,111730.0,0.21541]
[1760618794579,0.27898693,111740.0,111730.0,0.21541]
[1760618795220,0.1,111740.0,111730.0,0.21541]
[1760618796167,0.1,111740.0,111730.0,0.30510012]
[1760618797506,0.43890309,111740.0,111730.0,0.21541]
[1760618797944,0.11933052,111740.0,111730.0,0.21541]
[1760618798166,0.1,111740.0,111730.0,0.21541]
[1760618803486,0.48125792,111740.0,111730.0,0.21541]
[1760618804150,5.33529148,111740.0,111730.0,0.21541]
[1760618805327,5.33529148,111740.0,111730.0,0.03640705]
[1760618805597,5.33529148,111740.0,111730.0,0.00054996]
[1760618805598,5.3594561,111740.0,111730.0,0.00054996]
[1760618805813,5.6994561,111740.0,111730.0,0.00054996]
[1760618807193,5.7010151,111740.0,111730.0,0.00054996]
[1760618811037,5.31975718,111740.0,111730.0,0.00054996]
[1760618811244,5.7010151,111740.0,111730.0,0.00054996]
[1760618814902,5.31975718,111740.0,111730.0,0.00054996]
[1760618815101,5.31975718,111740.0,111730.0,0.17955291]
[1760618815102,1.02113548,111740.0,111730.0,0.17955291]
[1760618815243,0.46089063,111740.0,111730.0,0.21540989]
[1760618815440,0.84214855,111740.0,111730.0,0.21540989]
[1760618815671,1.02113548,111740.0,111730.0,0.21540989]
[1760618816036,1.02113548,111740.0,111730.0,0.03640694]
[1760618816448,0.63987756,111740.0,111730.0,0.21540989]
[1760618816664,1.02113548,111740.0,111730.0,0.21540989]
[1760618817080,1.02113548,111740.0,111730.0,0.03640694]
[1760618818234,1.02113548,111740.0,111730.0,0.21540989]
[1760618819419,0.68113548,111740.0,111730.0,0.21540989]
[1760618820126,0.50058955,111740.0,111730.0,0.21540989]
[1760618820638,0.50058955,111740.0,111730.0,0.03640694]
[1760618820639,0.67957648,111740.0,111730.0,0.03640694]
[1760618820880,0.67957648,111740.0,111730.0,0.00054996]
[1760618821378,5.6994561,111740.0,111730.0,0.00054996]
[1760618822356,5.78914622,111740.0,111730.0,0.00054996]
[1760618822617,6.19796396,111740.0,111730.0,0.00054996]
[1760618823277,6.23174429,111740.0,111730.0,0.00054996]
[1760618823502,5.85048637,111740.0,111730.0,0.00054996]
[1760618823945,6.27661507,111740.0,111730.0,0.00054996]
[1760618824163,6.27920256,111740.0,111730.0,1e-08]
[1760618824384,5.17475,111710.0,111700.0,0.0717521]
[1760618824600,5.80920616,111710.0,111700.0,0.0717521]
[1760618824830,0.17906706,111690.0,111680.0,0.0721521]
[1760618825061,0.67032498,111690.0,111680.0,0.27639988]
[1760618825287,0.67032498,111690.0,111680.0,0.20464778]
[1760618825756,0.70633277,111690.0,111680.0,0.20464778]
[1760618825973,0.52726571,111690.0,111680.0,0.20464778]
[1760618827558,0.14600779,111690.0,111680.0,0.20464778]
[1760618827784,0.52726571,111690.0,111680.0,0.20464778]
[1760618830117,0.70633277,111690.0,111680.0,0.20464778]
[1760618830353,0.32507485,111690.0,111680.0,0.20464778]
[1760618830590,0.52726571,111690.0,111680.0,0.20464778]
[1760618832507,0.54647118,111690.0,111680.0,0.20464778]
[1760618841237,0.95181623,111690.0,111680.0,0.17948309]
[1760618841437,0.57055831,111690.0,111680.0,0.17948309]
[1760618842485,6.15871447,111690.0,111680.0,0.0004]
[1760618842696,6.27249173,111690.0,111680.0,0.0004]
[1760618843123,6.30419359,111690.0,111680.0,0.0004]
[1760618843344,6.27207741,111690.0,111680.0,0.0004]
[1760618844417,6.28834538,111690.0,111680.0,0.0004]
[1760618844871,5.55605601,111680.0,111670.0,0.0004]
[1760618845093,5.84289232,111680.0,111670.0,0.0004]
[1760618845778,5.84445221,111680.0,111670.0,0.0004]
[1760618846438,5.82821335,111680.0,111670.0,0.0004]
[1760618847329,5.89265559,111680.0,111670.0,0.0004]
[1760618847806,5.81609394,111680.0,111670.0,0.0004]
[1760618848225,6.19735186,111680.0,111670.0,0.0004]
[1760618848879,6.21399242,111680.0,111670.0,0.0004]
[1760618849083,6.27843466,111680.0,111670.0,0.0004]
[1760618849416,5.89717674,111680.0,111670.0,0.0004]
[1760618849915,5.96868681,111670.0,111660.0,0.01360332]
[1760618850127,6.28810705,111670.0,111660.0,0.02197563]
[1760618850571,6.28810705,111670.0,111660.0,0.01360332]
[1760618850798,6.22422296,111670.0,111660.0,0.01360332]
[1760618851268,6.22527285,111670.0,111660.0,0.01360332]
[1760618851487,6.23887617,111670.0,111660.0,0.01360332]